bitfinex/quotes_SOLUSD_20250206
["timestamp","ask_amount","ask_price","bid_price","bid_amount"]
[1738835728554,0.063,202.56,202.54,0.37647]
[1738835728861,0.063,202.56,202.54,23.90727309]
[1738835729648,0.063,202.56,202.54,23.16690613]
[1738835729851,0.063,202.56,202.54,23.29239613]
[1738835730158,0.063,202.56,202.54,28.22959613]
[1738835731667,0.0001,202.55,202.54,28.22959613]
[1738835731967,0.0001,202.56,202.55,14.91380853]
[1738835732175,0.0001,202.56,202.55,25.03261292]
[1738835732874,0.0001,202.56,202.55,24.03261292]
[1738835733664,0.0001,202.56,202.55,28.96961292]
[1738835736538,0.0001,202.56,202.55,15.55776439]
[1738835736853,0.0001,202.56,202.52,9.3785876]
[1738835737054,0.0001,202.56,202.53,9.3785876]
[1738835739479,0.0001,202.56,202.53,4.9375]
[1738835739671,0.0001,202.56,202.55,9.8805476]
[1738835739871,0.0001,202.56,202.55,14.8175476]
[1738835740057,0.0001,202.56,202.55,28.22939613]
[1738835742453,0.0001,202.56,202.55,29.96967485]
[1738835742972,0.0001,202.56,202.55,30.96967485]
[1738835744973,0.0001,202.56,202.55,30.99967485]
[1738835745363,0.063,202.59,202.56,34.37119613]
[1738835745758,0.063,202.63,202.61,0.12549]
[1738835745960,0.063,202.63,202.62,27.81241725]
[1738835746363,1.5771,202.76,202.66,20.0]
[1738835746581,1.5771,202.76,202.71,9.3785876]
[1738835746759,0.09438339,202.72,202.7,9.3785876]
[1738835747175,0.09438339,202.72,202.71,9.3785876]
[1738835747384,0.09438339,202.72,202.71,14.8136476]
[1738835747584,0.09438339,202.72,202.71,28.22549613]
[1738835748086,0.09438339,202.72,202.71,14.8136476]
[1738835749279,0.09438339,202.72,202.71,9.3785876]
[1738835749485,0.09438339,202.72,202.7,9.3785876]
[1738835749680,0.09438339,202.72,202.71,9.8805476]
[1738835751374,0.09438339,202.72,202.71,14.8136476]
[1738835753391,0.09438339,202.72,202.71,28.22549613]
[1738835756193,0.09438339,202.72,202.71,9.3785876]
[1738835757106,0.12438339,202.72,202.68,9.3785876]
[1738835757263,0.12438339,202.72,202.68,29.3785876]
[1738835758588,0.12438339,202.72,202.7,9.3785876]
[1738835758885,0.12438339,202.72,202.68,24.9338]
[1738835759075,0.12438339,202.72,202.71,9.3785876]
[1738835761280,0.12438339,202.72,202.69,9.3785876]
[1738835761689,0.12438339,202.72,202.68,9.3785876]
[1738835761997,0.12438339,202.72,202.69,9.3785876]
[1738835762297,0.12438339,202.72,202.68,9.3785876]
[1738835762664,0.12438339,202.72,202.69,9.3785876]
[1738835763591,0.12438339,202.72,202.68,9.3785876]
[1738835763813,1.64978339,202.72,202.66,29.3785876]
[1738835764095,15.96137099,202.72,202.66,29.3785876]
[1738835764275,6.58278339,202.72,202.66,29.3785876]
[1738835765082,91.7785876,202.71,202.65,0.063]
[1738835765396,9.3785876,202.69,202.65,0.063]
[1738835765597,9.3785876,202.7,202.65,0.063]
[1738835765902,91.7785876,202.71,202.65,0.063]
[1738835766793,0.09653673,202.66,202.65,0.063]
[1738835768479,9.47512433,202.66,202.65,0.063]
[1738835768712,0.09653673,202.66,202.65,0.063]
[1738835771297,14.40942433,202.66,202.65,0.063]
[1738835771605,5.03083673,202.66,202.65,0.063]
[1738835772778,0.09653673,202.66,202.65,0.063]
[1738835773998,5.03083673,202.66,202.65,0.063]
[1738835774181,14.40942433,202.66,202.65,0.063]
[1738835774378,5.03083673,202.66,202.65,0.063]
[1738835774580,0.09653673,202.66,202.65,0.063]
[1738835774908,5.03083673,202.66,202.65,0.063]
[1738835777206,14.40942433,202.66,202.65,0.063]
[1738835777396,16.01752433,202.66,202.65,0.063]
[1738835777707,29.42937286,202.66,202.65,0.063]
[1738835781310,30.80584286,202.66,202.65,0.063]
[1738835781909,20.0,202.63,202.55,0.03]
[1738835782096,9.3785876,202.61,202.55,0.03]
[1738835782407,91.7785876,202.62,202.55,14.3455876]
[1738835783214,82.4,202.62,202.56,9.3785876]
[1738835783816,96.7139876,202.62,202.55,14.3455876]
[1738835785808,96.7139876,202.62,202.55,9.4085876]
[1738835786117,96.7139876,202.62,202.56,9.3785876]
[1738835786617,0.10024877,202.57,202.56,9.3785876]
[1738835790018,0.10024877,202.57,202.56,14.3153876]
[1738835790816,0.10024877,202.57,202.56,28.22919613]
[1738835791118,4.877e-05,202.57,202.56,35.14166561]
[1738835793901,3.02e-06,202.58,202.56,35.14166561]
[1738835794109,3.02e-06,202.58,202.57,24.29239613]
[1738835795221,3.02e-06,202.58,202.57,29.22889613]
[1738835796420,3.02e-06,202.58,202.57,28.22889613]
[1738835800217,3.02e-06,202.58,202.57,14.8170476]
[1738835800418,3.02e-06,202.58,202.57,14.3150876]
[1738835806640,0.09673892,202.58,202.57,14.3150876]
[1738835808104,0.0967359,202.58,202.57,14.3150876]
[1738835809634,0.0967359,202.58,202.55,0.03]
[1738835809635,0.0967359,202.58,202.55,9.4085876]
[1738835809832,0.0967359,202.58,202.55,0.03]
[1738835810136,82.4967359,202.58,202.55,0.03]
[1738835815839,82.5267359,202.58,202.55,0.03]
[1738835820914,82.4,202.57,202.55,0.03]
[1738835826041,82.4,202.57,202.56,9.6295676]
[1738835826245,82.4,202.57,202.56,23.29239613]
[1738835826547,82.49006734,202.57,202.56,23.29239613]
[1738835827060,0.09006734,202.57,202.56,28.22919613]
[1738835827541,0.12006734,202.57,202.56,28.22919613]
[1738835834949,6.734e-05,202.57,202.56,28.22919613]
[1738835835150,6.734e-05,202.57,202.56,32.96919613]
[1738835835347,8.329e-05,202.6,202.59,33.91380853]
[1738835835542,8.329e-05,202.6,202.59,81.54689078]
[1738835836948,8.329e-05,202.6,202.59,86.48289078]
[1738835837957,0.09708149,202.61,202.59,86.48289078]
[1738835837958,6.478e-05,202.61,202.6,13.91380853]
[1738835838257,6.478e-05,202.61,202.6,60.80674653]
[1738835838459,3.908e-05,202.62,202.6,61.80674653]
[1738835838658,3.908e-05,202.62,202.61,24.03242498]
[1738835840057,3.908e-05,202.62,202.61,28.96792498]
[1738835846071,9.507e-05,202.63,202.62,13.91380853]
[1738835846242,9.507e-05,202.63,202.62,23.29239613]
[1738835846558,3.53e-05,202.63,202.62,23.29239613]
[1738835848067,3.619e-05,202.64,202.62,29.22769613]
[1738835848267,3.619e-05,202.64,202.63,24.03237176]
[1738835850162,5.04e-06,202.65,202.64,15.91380853]
[1738835850366,5.04e-06,202.65,202.64,25.29239613]
[1738835851761,5.04e-06,202.65,202.64,29.22719613]
[1738835852157,5.04e-06,202.65,202.64,28.22719613]
[1738835853242,5.04e-06,202.65,202.64,5.18578]
[1738835854371,5.04e-06,202.65,202.64,28.22719613]
[1738835855871,5.04e-06,202.65,202.63,9.3785876]
[1738835856072,5.04e-06,202.65,202.62,14.3136876]
[1738835856669,5.04e-06,202.65,202.63,0.25098]
[1738835858375,5.04e-06,202.65,202.63,14.3135876]
[1738835858569,5.04e-06,202.65,202.63,4.935]
[1738835858774,5.04e-06,202.65,202.62,14.5647676]
[1738835860977,5.04e-06,202.65,202.63,9.3785876]
[1738835864478,5.04e-06,202.65,202.63,14.3135876]
[1738835865381,5.04e-06,202.65,202.64,9.6295676]
[1738835865562,5.04e-06,202.65,202.64,23.29239613]
[1738835866681,0.09172721,202.65,202.64,28.22719613]
[1738835868188,0.09172217,202.65,202.64,28.22719613]
[1738835872491,0.09172217,202.65,202.64,14.3133876]
[1738835872682,0.09172217,202.65,202.64,9.3785876]
[1738835874767,0.12172217,202.65,202.64,9.3785876]
[1738835875101,0.12172217,202.65,202.63,9.4415876]
[1738835876110,0.12172217,202.65,202.63,5.24898]
[1738835876307,0.12172217,202.65,202.63,0.063]
[1738835882880,0.12172217,202.65,202.63,9.4415876]
[1738835884709,0.12172217,202.65,202.64,4.9348]
[1738835885393,0.12172217,202.65,202.64,28.22719613]
[1738835885606,0.12172217,202.65,202.64,28.96729476]
[1738835885908,0.12172217,202.65,202.64,28.22719613]
[1738835886610,0.21589009,202.65,202.64,28.22719613]
[1738835888206,0.12416792,202.65,202.64,28.22719613]
[1738835895717,6.792e-05,202.65,202.64,29.22719613]
[1738835896022,7.895e-05,202.67,202.65,13.91380853]
[1738835896218,7.895e-05,202.67,202.66,24.03224333]
[1738835896627,7.895e-05,202.67,202.66,25.03224333]
[1738835896920,7.895e-05,202.67,202.66,29.96654333]
[1738835899840,9.59e-06,202.68,202.67,13.91380853]
[1738835900141,9.59e-06,202.68,202.67,23.29239613]
[1738835900345,9.59e-06,202.68,202.67,28.22649613]
[1738835903827,3.884e-05,202.69,202.67,28.22649613]
[1738835904019,0.10411057,202.73,202.69,13.91380853]
[1738835904020,2.747e-05,202.7,202.69,13.91380853]
[1738835904219,2.747e-05,202.7,202.69,60.80674653]
[1738835904518,4.838e-05,202.71,202.7,14.91380853]
[1738835904713,7.381e-05,202.72,202.71,13.91380853]
[1738835905238,7.381e-05,202.72,202.71,23.29239613]
[1738835905451,8.438e-05,202.73,202.72,14.91380853]
[1738835905738,8.438e-05,202.73,202.72,25.03200209]
[1738835906046,8.438e-05,202.73,202.72,28.96490209]
[1738835906427,8.438e-05,202.73,202.72,29.96490209]
[1738835906628,7.629e-05,202.73,202.72,29.96490209]
[1738835907039,7.502e-05,202.74,202.73,14.91380853]
[1738835907225,7.502e-05,202.74,202.73,24.29239613]
[1738835908132,7.502e-05,202.74,202.73,29.22499613]
[1738835909857,7.502e-05,202.74,202.73,28.22499613]
[1738835910225,7.502e-05,202.74,202.73,29.22499613]
[1738835910548,7.502e-05,202.74,202.73,30.22499613]
[1738835912433,7.502e-05,202.74,202.73,29.22499613]
[1738835913423,7.502e-05,202.74,202.73,28.22499613]
[1738835915651,7.502e-05,202.74,202.73,29.22499613]
[1738835917044,0.09600952,202.75,202.74,14.91380853]
[1738835917238,0.09600952,202.75,202.74,29.96437045]
[1738835917634,0.1016074,202.77,202.75,14.91380853]
[1738835917844,0.1016074,202.77,202.76,24.03189612]
[1738835918137,0.10458385,202.81,202.77,13.91380853]
[1738835918337,6.926e-05,202.79,202.78,61.54621719]
[1738835919051,8.079e-05,202.8,202.79,13.91380853]
[1738835919269,0.03,202.85,202.81,33.91380853]
[1738835919437,4.162e-05,202.82,202.81,44.03169609]
[1738835920662,4.162e-05,202.82,202.81,43.29239613]
[1738835921658,4.162e-05,202.82,202.81,48.22309613]
[1738835922457,0.03004162,202.82,202.81,48.22309613]
[1738835924852,0.03004162,202.82,202.79,9.3785876]
[1738835925039,0.03004162,202.82,202.78,9.3785876]
[1738835926543,0.1004183,202.8,202.79,14.5607676]
[1738835927058,0.1004183,202.8,202.77,9.3785876]
[1738835927248,0.1004183,202.8,202.76,9.3785876]
[1738835927562,0.1004183,202.8,202.79,20.0]
[1738835927936,0.1004183,202.8,202.76,9.3785876]
[1738835928742,0.1004183,202.8,202.76,14.3104876]
[1738835930170,0.1004183,202.8,202.75,29.3785876]
[1738835930349,0.1004183,202.8,202.75,34.3106876]
[1738835930742,0.1004183,202.8,202.76,9.5040776]
[1738835930942,0.1004183,202.8,202.77,9.3785876]
[1738835931444,0.1004183,202.8,202.76,9.5040776]
[1738835932547,0.1004183,202.8,202.77,9.3785876]
[1738835933268,0.1004183,202.8,202.76,14.4357776]
[1738835933765,0.1004183,202.8,202.77,9.3785876]
[1738835934269,0.1304183,202.8,202.77,9.3785876]
[1738835934473,0.1304183,202.8,202.77,14.3100876]
[1738835934648,0.1304183,202.8,202.77,4.9315]
[1738835935760,0.1304183,202.8,202.77,14.3100876]
[1738835935957,0.1304183,202.8,202.78,14.3098876]
[1738835936352,0.1304183,202.8,202.78,4.9313]
[1738835936557,0.1304183,202.8,202.77,9.3785876]
[1738835936768,0.1304183,202.8,202.76,14.4357776]
[1738835938963,0.1304183,202.8,202.77,14.3101876]
[1738835939470,0.1304183,202.8,202.78,9.5040776]
[1738835940072,0.1304183,202.8,202.79,9.6295676]
[1738835942255,0.1304183,202.8,202.79,14.5607676]
[1738835943276,0.1304183,202.8,202.79,14.4352776]
[1738835943462,0.1304183,202.8,202.77,4.9314]
[1738835943880,0.1304183,202.8,202.78,20.12549]
[1738835944466,0.1304183,202.8,202.78,25.05669]
[1738835945186,0.1304183,202.8,202.78,34.4352776]
[1738835945681,0.1304183,202.8,202.78,14.4352776]
[1738835946176,0.1304183,202.8,202.78,34.4352776]
[1738835946558,0.10532005,202.79,202.78,34.4352776]
[1738835952785,0.10532005,202.79,202.77,0.063]
[1738835954088,0.10532005,202.79,202.77,4.9946]
[1738835954293,0.10532005,202.79,202.77,14.3731876]
[1738835954585,0.10532005,202.79,202.77,9.4415876]
[1738835954773,0.10532005,202.79,202.77,0.063]
[1738835958597,0.10532005,202.79,202.77,29.4415876]
[1738835961191,0.10532005,202.79,202.77,34.3731876]
[1738835961896,0.10532005,202.79,202.77,14.3731876]
[1738835963498,0.10532005,202.79,202.78,9.3785876]
[1738835964297,0.10532005,202.79,202.78,14.3099876]
[1738835966690,0.20620934,202.79,202.78,4.9314]
[1738835968198,0.10088929,202.79,202.78,4.9314]
[1738835969797,0.10088929,202.79,202.78,9.5040776]
[1738835970497,0.10088929,202.79,202.78,9.8805476]
[1738835971584,0.10088929,202.79,202.78,9.6295676]
[1738835972281,0.10088929,202.79,202.78,14.3099876]
[1738835972482,0.10088929,202.79,202.77,0.063]
[1738835972483,0.10088929,202.79,202.77,9.4415876]
[1738835973477,0.10088929,202.79,202.77,0.063]
[1738835973893,0.10088929,202.79,202.77,9.4415876]
[1738835974399,0.10088929,202.79,202.78,9.3785876]
[1738835975096,0.10088929,202.79,202.77,14.3731876]
[1738835977589,0.10088929,202.79,202.78,9.3785876]
[1738835978405,0.10088929,202.79,202.78,14.3099876]
[1738835980207,0.10088929,202.79,202.78,4.9314]
[1738835981802,0.10088929,202.79,202.78,14.4354776]
[1738835982005,0.10088929,202.79,202.78,14.5609676]
[1738835982313,0.10088929,202.79,202.78,14.3099876]
[1738835982904,0.10088929,202.79,202.77,0.063]
[1738835983284,9.47947689,202.79,202.77,0.063]
[1738835984387,9.3785876,202.78,202.77,0.063]
[1738835985003,14.3099876,202.78,202.77,0.063]
[1738835986600,14.40790182,202.78,202.77,0.063]
[1738835988414,9.47650182,202.78,202.77,0.063]
[1738835989602,14.40790182,202.78,202.77,0.063]
[1738835989794,9.47650182,202.78,202.77,0.063]
[1738835992119,14.40790182,202.78,202.77,0.063]
[1738835995916,27.94524035,202.78,202.77,0.063]
[1738835996520,14.40790182,202.78,202.77,0.063]
[1738835997528,9.47650182,202.78,202.77,0.063]
[1738835997908,14.40790182,202.78,202.77,0.063]
[1738835998323,9.47650182,202.78,202.77,0.063]
[1738835998507,0.09791422,202.78,202.77,0.063]
[1738836000420,9.47650182,202.78,202.77,0.063]
[1738836000731,14.40790182,202.78,202.77,0.063]
[1738836002444,0.09791422,202.78,202.77,0.063]
[1738836004524,0.09791422,202.78,202.77,4.9946]
[1738836006640,0.19596225,202.78,202.77,4.9946]
[1738836007263,0.19596225,202.78,202.77,0.063]
[1738836007542,0.19596225,202.78,202.77,9.4415876]
[1738836007740,0.19596225,202.78,202.77,14.4986776]
[1738836008249,0.09804803,202.78,202.77,14.4986776]
[1738836008544,0.09804803,202.78,202.77,14.6241676]
[1738836008931,0.09804803,202.78,202.77,28.28699613]
[1738836011549,0.09804803,202.78,202.77,29.02652955]
[1738836011745,4.803e-05,202.78,202.77,29.02652955]
[1738836012046,0.09098515,202.79,202.78,21.96040853]
[1738836012047,8.515e-05,202.79,202.78,21.96040853]
[1738836012253,8.515e-05,202.79,202.78,68.85334653]
[1738836013137,6.82e-06,202.8,202.78,68.85334653]
[1738836013355,6.82e-06,202.8,202.79,66.47737227]
[1738836013550,9e-08,202.81,202.8,13.91380853]
[1738836013851,9e-08,202.81,202.8,60.80674653]
[1738836014741,9e-08,202.81,202.8,23.29239613]
[1738836015155,9e-08,202.81,202.8,0.12549]
[1738836015456,9e-08,202.81,202.8,3.80452271]
[1738836015840,9e-08,202.81,202.8,18.11401031]
[1738836016539,9e-08,202.81,202.8,14.4349776]
[1738836023163,9e-08,202.81,202.8,28.22329613]
[1738836023757,9e-08,202.81,202.8,14.4349776]
[1738836023957,9e-08,202.81,202.79,14.3096876]
[1738836024542,9e-08,202.81,202.78,9.3785876]
[1738836025546,9e-08,202.81,202.77,14.4984776]
[1738836026659,0.08906734,202.78,202.77,0.063]
[1738836027168,9.46765494,202.78,202.77,0.063]
[1738836029267,14.39905494,202.78,202.77,0.063]
[1738836029968,16.05635494,202.78,202.77,0.063]
[1738836035147,17.05635494,202.78,202.77,0.063]
[1738836035543,16.05635494,202.78,202.77,0.063]
[1738836037572,29.59369347,202.78,202.77,0.063]
[1738836037773,0.9999,202.77,202.73,0.063]
[1738836037952,9.3785876,202.74,202.73,0.063]
[1738836039055,23.91592613,202.74,202.73,0.063]
[1738836039878,28.84832613,202.74,202.73,0.063]
[1738836040776,27.84832613,202.74,202.73,0.063]
[1738836040974,29.09801122,202.74,202.73,0.063]
[1738836041284,15.56067269,202.74,202.73,0.063]
[1738836042477,6.18208509,202.74,202.73,0.063]
[1738836043168,15.56067269,202.74,202.73,0.063]
[1738836044179,14.3109876,202.74,202.73,0.063]
[1738836044377,16.2871458,202.78,202.73,0.063]
[1738836044378,14.39925494,202.78,202.73,0.063]
[1738836044554,5.02066734,202.78,202.73,0.063]
[1738836044974,0.08906734,202.78,202.73,0.063]
[1738836045175,0.08906734,202.78,202.74,9.3785876]
[1738836046885,0.09706274,202.75,202.74,9.3785876]
[1738836047262,0.09706274,202.75,202.74,14.3109876]
[1738836051986,0.09706274,202.75,202.74,14.4364776]
[1738836054667,0.09706274,202.75,202.74,14.5619676]
[1738836054865,0.09706274,202.75,202.74,28.22479613]
[1738836055788,0.09706274,202.75,202.74,14.4364776]
[1738836056003,0.09706274,202.75,202.73,14.3741876]
[1738836056168,0.09706274,202.75,202.73,4.9956]
[1738836056889,0.09706274,202.75,202.73,14.3741876]
[1738836057196,0.09706274,202.75,202.74,9.3785876]
[1738836058788,0.09706274,202.75,202.74,14.3109876]
[1738836060471,0.09706274,202.75,202.74,14.5619676]
[1738836060670,0.09706274,202.75,202.74,14.4364776]
[1738836061288,0.09706274,202.75,202.73,4.9956]
[1738836062804,0.09706274,202.75,202.73,9.4415876]
[1738836063005,0.09706274,202.75,202.74,9.3785876]
[1738836064104,0.09706274,202.75,202.74,9.30758016]
[1738836064310,0.09706274,202.75,202.74,9.3785876]
[1738836064608,0.09706274,202.75,202.74,9.5040776]
[1738836066607,0.19305642,202.75,202.74,9.5040776]
[1738836066910,0.19305642,202.75,202.74,14.4364776]
[1738836067717,0.19305642,202.75,202.74,14.3109876]
[1738836068212,0.09599368,202.75,202.74,14.3109876]
[1738836068395,0.09599368,202.75,202.74,14.4364776]
[1738836070106,0.09599368,202.75,202.74,14.8129476]
[1738836070913,0.09599368,202.75,202.74,28.22479613]
[1738836072196,0.09599368,202.75,202.74,14.5619676]
[1738836073915,0.09599368,202.75,202.74,28.22479613]
[1738836076513,0.09599368,202.75,202.74,14.4364776]
[1738836077013,0.09599368,202.75,202.74,28.22479613]
[1738836082394,0.09599368,202.75,202.74,28.28779613]
[1738836083030,0.10029286,202.77,202.76,33.91380853]
[1738836083191,0.13709426,202.78,202.77,23.29239613]
[1738836084141,0.10059496,202.79,202.78,13.78831853]
[1738836084291,0.10341935,202.83,202.81,13.66282853]
[1738836084609,0.10341935,202.83,202.82,13.91380853]
[1738836084826,1.935e-05,202.83,202.82,23.29239613]
[1738836085701,1.935e-05,202.83,202.82,26.9720825]
[1738836086016,1.935e-05,202.83,202.82,31.9024825]
[1738836086806,0.09443436,202.83,202.82,31.9024825]
[1738836088121,0.09441501,202.83,202.82,31.9024825]
[1738836089311,0.09441501,202.83,202.82,18.23965397]
[1738836090190,0.09441501,202.83,202.82,14.5599676]
[1738836091791,0.09441501,202.83,202.82,9.3785876]
[1738836092532,82.49441501,202.83,202.8,9.3785876]
[1738836092721,82.4,202.82,202.8,9.3785876]
[1738836093328,82.4,202.82,202.81,9.3785876]
[1738836093920,82.4,202.82,202.8,9.3785876]
[1738836095119,82.43,202.82,202.79,9.3785876]
[1738836096312,82.43,202.82,202.81,9.3785876]
[1738836096516,82.43,202.82,202.8,9.3785876]
[1738836098610,82.43,202.82,202.81,9.3785876]
[1738836099226,82.43,202.82,202.81,14.5602676]
[1738836099814,82.43,202.82,202.81,28.22309613]
[1738836100319,0.03,202.82,202.81,28.22309613]
[1738836100527,0.03,202.82,202.81,28.96249762]
[1738836101519,0.03,202.82,202.81,28.22309613]
[1738836104706,0.03,202.82,202.81,14.5602676]
[1738836106727,0.13491794,202.82,202.81,14.5602676]
[1738836106928,0.13491794,202.82,202.81,14.6232676]
[1738836110226,0.13491794,202.82,202.81,9.4415876]
[1738836111312,0.13491794,202.82,202.81,0.063]
[1738836111517,14.44390554,202.82,202.81,0.063]
[1738836111861,5.06531794,202.82,202.81,0.063]
[1738836115015,14.44390554,202.82,202.81,0.063]
[1738836117441,15.44380554,202.82,202.81,0.063]
[1738836117644,45.44380554,202.82,202.81,0.063]
[1738836118545,58.98114407,202.82,202.81,0.063]
[1738836119128,5.06531794,202.82,202.81,0.063]
[1738836120127,0.13491794,202.82,202.81,0.063]
[1738836120326,0.13491794,202.82,202.81,9.4415876]
[1738836120823,0.13491794,202.82,202.81,19.83123847]
[1738836121034,0.13491794,202.82,202.81,14.64955847]
[1738836124440,0.13491794,202.82,202.81,19.70574847]
[1738836124646,0.13491794,202.82,202.81,19.83123847]
[1738836126655,0.24257543,202.82,202.81,19.83123847]
[1738836127254,0.24257543,202.82,202.81,14.64955847]
[1738836127458,0.24257543,202.82,202.81,19.58025847]
[1738836128138,0.13765749,202.82,202.81,19.58025847]
[1738836128460,29.84837385,202.88,202.81,19.58025847]
[1738836128662,24.81543239,202.87,202.83,14.58655847]
[1738836129134,24.81543239,202.87,202.81,0.063]
[1738836129340,24.81543239,202.87,202.84,14.58655847]
[1738836129737,24.81543239,202.87,202.85,14.58655847]
[1738836131158,24.81543239,202.87,202.84,14.58655847]
[1738836131357,29.74473239,202.87,202.82,14.58655847]
[1738836131561,24.81543239,202.86,202.81,0.063]
[1738836131940,14.58655847,202.85,202.81,0.063]
[1738836132141,24.81543239,202.84,202.81,0.063]
[1738836133463,29.74553239,202.84,202.81,0.063]
[1738836134067,24.81543239,202.83,202.81,0.063]
[1738836134240,24.81543239,202.82,202.81,0.063]
[1738836134666,24.81543239,202.82,202.81,14.64955847]
[1738836135539,24.81543239,202.82,202.81,19.58025847]
[1738836137642,24.81543239,202.86,202.81,19.58025847]
[1738836137842,24.81543239,202.86,202.83,14.58655847]
[1738836138338,24.81543239,202.86,202.84,14.58655847]
[1738836140141,24.81543239,202.86,202.85,14.58655847]
[1738836142866,24.81543239,202.86,202.84,14.58655847]
[1738836143454,24.81543239,202.86,202.85,14.58655847]
[1738836144571,24.81543239,202.86,202.84,14.58655847]
[1738836144780,29.74493239,202.86,202.81,14.64955847]
[1738836145150,29.74493239,202.86,202.81,0.063]
[1738836145151,24.81543239,202.85,202.81,0.063]
[1738836145870,14.58655847,202.83,202.81,0.063]
[1738836146389,24.81543239,202.82,202.81,0.063]
[1738836146567,15.58655847,202.82,202.81,0.063]
[1738836146876,34.1543141,202.82,202.81,0.063]
[1738836147656,34.2798041,202.82,202.81,0.063]
[1738836148052,34.4052941,202.82,202.81,0.0001]
[1738836148583,35.9493941,202.82,202.81,0.0001]
[1738836149577,0.9999,202.77,202.74,0.063]
[1738836149763,15.58645847,202.77,202.74,0.063]
[1738836151297,0.9999,202.77,202.74,0.063]
[1738836151582,4.9319,202.76,202.74,0.063]
[1738836152982,25.9312,202.79,202.75,14.58655847]
[1738836153288,25.9312,202.79,202.74,0.063]
[1738836153491,0.9999,202.77,202.74,0.063]
[1738836154994,30.0,202.78,202.74,0.063]
[1738836155180,4.9316,202.77,202.74,0.063]
[1738836155396,82.4,202.77,202.75,14.58655847]
[1738836155592,82.4,202.77,202.76,14.58655847]
[1738836155781,82.4,202.77,202.75,14.58655847]
[1738836156692,82.4,202.77,202.74,14.64955847]
[1738836159592,82.4,202.77,202.75,14.58655847]
[1738836160091,82.4,202.77,202.74,14.64955847]
[1738836160268,4.9319,202.76,202.74,0.063]
[1738836160985,82.4,202.75,202.74,0.063]
[1738836162474,87.3321,202.75,202.74,0.063]
[1738836164395,4.9319,202.76,202.74,0.063]
[1738836166301,30.0,202.78,202.74,0.063]
[1738836166483,4.9316,202.77,202.74,0.063]
[1738836166683,0.10397901,202.75,202.74,0.063]
[1738836168795,5.03607901,202.75,202.74,0.063]
[1738836173777,0.10397901,202.75,202.74,0.063]
[1738836173995,0.10397901,202.75,202.74,9.41198695]
[1738836175403,0.10397901,202.75,202.74,0.063]
[1738836175601,5.03607901,202.75,202.74,0.063]
[1738836177994,0.10397901,202.75,202.74,0.063]
[1738836178896,5.03607901,202.75,202.74,0.063]
[1738836184999,14.38506596,202.75,202.74,0.063]
[1738836185214,57.92240449,202.75,202.74,0.063]
[1738836185417,58.04789449,202.75,202.74,0.063]
[1738836185717,59.74768449,202.75,202.74,0.063]
[1738836185924,31.9999,202.71,202.64,0.063]
[1738836186131,9.34898695,202.69,202.64,0.063]
[1738836186499,4.9338,202.68,202.64,0.063]
[1738836186703,0.08887303,202.65,202.64,0.063]
[1738836190620,0.08887303,202.65,202.64,9.41198695]
[1738836191003,0.08887303,202.65,202.64,0.063]
[1738836192521,5.02347303,202.65,202.64,0.063]
[1738836192721,35.37235998,202.65,202.64,0.063]
[1738836193100,25.02347303,202.65,202.64,0.063]
[1738836194821,0.08887303,202.65,202.64,0.063]
[1738836195027,0.08887303,202.65,202.64,9.41198695]
[1738836196902,0.08887303,202.65,202.64,0.063]
[1738836197309,0.08887303,202.65,202.64,9.41198695]
[1738836197904,0.08887303,202.65,202.64,0.063]
[1738836198415,0.08887303,202.65,202.64,9.41198695]
[1738836199624,5.02347303,202.65,202.64,0.063]
[1738836200219,0.08887303,202.65,202.64,0.063]
[1738836202527,0.08887303,202.65,202.64,14.68209361]
[1738836205633,0.08887303,202.65,202.64,0.063]
[1738836205821,5.02347303,202.65,202.64,0.063]
[1738836206817,0.18308476,202.65,202.64,0.063]
[1738836207635,5.11768476,202.65,202.64,0.063]
[1738836208139,5.02881173,202.65,202.64,0.063]
[1738836210234,0.09421173,202.65,202.64,0.063]
[1738836210423,0.09421173,202.65,202.64,14.68209361]
[1738836210816,0.09421173,202.65,202.64,14.80758361]
[1738836211621,0.09421173,202.65,202.64,14.93307361]
[1738836212028,0.09421173,202.65,202.64,36.94985694]
[1738836212435,0.09018777,202.66,202.65,13.78831853]
[1738836212618,0.09018777,202.66,202.65,28.40741214]
[1738836213231,0.09018777,202.66,202.65,28.53290214]
[1738836213438,0.09212954,202.68,202.67,33.78831853]
[1738836213744,0.09549103,202.69,202.68,0.25098]
[1738836213926,0.09003465,202.72,202.7,33.78831853]
[1738836214243,0.09003465,202.72,202.7,63.76626122]
[1738836215315,0.09003465,202.72,202.7,68.69956122]
[1738836217542,0.09003465,202.72,202.7,68.82505122]
[1738836217746,0.09003465,202.72,202.71,13.78831853]